[Event "*** SCC Grand Prix: Titled Tuesday Blitz"]
[Site "Chess.com"]
[Date "2020.10.13"]
[Round "9"]
[White "PawnEatingZombie"]
[Black "PavelChernomordik"]
[Result "1-0"]
[WhiteElo "2202"]
[BlackElo "2314"]
[TimeControl "180+1"]
[EndTime "11:45:07 PDT"]
[Termination "PawnEatingZombie won by resignation"]

1. d4 {[%clk 0:03:00.9]} 1... g6 {[%clk 0:02:57.9]} 2. e4 {[%clk 0:03:00.3]}
2... Bg7 {[%clk 0:02:58.2]} 3. Nc3 {[%clk 0:03:00.8]} 3... d6 {[%clk 0:02:53.4]}
4. g3 {[%clk 0:03:00.7]} 4... Nf6 {[%clk 0:02:50.8]} 5. Bg2 {[%clk 0:03:00.5]}
5... O-O {[%clk 0:02:51.2]} 6. Nge2 {[%clk 0:03:00]} 6... Nbd7 {[%clk
0:02:51.6]} 7. O-O {[%clk 0:02:59.6]} 7... c5 {[%clk 0:02:51.8]} 8. h3 {[%clk
0:02:53.7]} 8... Rb8 {[%clk 0:02:50.1]} 9. a4 {[%clk 0:02:49.7]} 9... b6 {[%clk
0:02:46.5]} 10. Be3 {[%clk 0:02:48.3]} 10... Bb7 {[%clk 0:02:44.4]} 11. g4
{[%clk 0:02:26.6]} 11... a6 {[%clk 0:02:37.2]} 12. Ng3 {[%clk 0:02:22.7]} 12...
Qc7 {[%clk 0:02:26.6]} 13. Qd2 {[%clk 0:02:21]} 13... cxd4 {[%clk 0:02:14.3]}
14. Bxd4 {[%clk 0:02:19.5]} 14... e5 {[%clk 0:02:13.9]} 15. Be3 {[%clk
0:02:14.1]} 15... Nc5 {[%clk 0:02:14.2]} 16. Rfd1 {[%clk 0:02:02.8]} 16... Rbd8
{[%clk 0:02:11.9]} 17. g5 {[%clk 0:01:54.6]} 17... Ne8 {[%clk 0:02:07.5]} 18.
Nd5 {[%clk 0:01:53.3]} 18... Bxd5 {[%clk 0:02:05.8]} 19. Qxd5 {[%clk 0:01:52.5]}
19... Ne6 {[%clk 0:02:03]} 20. c3 {[%clk 0:01:47.7]} 20... Nf4 {[%clk
0:02:00.8]} 21. Qd2 {[%clk 0:01:34.8]} 21... Nxg2 {[%clk 0:01:52.8]} 22. Kxg2
{[%clk 0:01:35.7]} 22... f5 {[%clk 0:01:51.1]} 23. gxf6 {[%clk 0:01:33.5]} 23...
Nxf6 {[%clk 0:01:47.7]} 24. Qc2 {[%clk 0:01:18.8]} 24... Qc6 {[%clk 0:01:43.7]}
25. Qb3+ {[%clk 0:01:18.3]} 25... Kh8 {[%clk 0:01:40.5]} 26. Qxb6 {[%clk
0:01:18]} 26... Qa8 {[%clk 0:01:37]} 27. Rxd6 {[%clk 0:00:48]} 27... Rxd6 {[%clk
0:01:28.2]} 28. Qxd6 {[%clk 0:00:47.1]} 28... Nxe4 {[%clk 0:01:28.4]} 29. Nxe4
{[%clk 0:00:36.3]} 29... Qxe4+ {[%clk 0:01:28.5]} 30. Kg1 {[%clk 0:00:33.3]}
30... h5 {[%clk 0:01:26.8]} 31. a5 {[%clk 0:00:28.9]} 31... Rf3 {[%clk
0:01:21.7]} 32. Qd7 {[%clk 0:00:16.7]} 32... Rf5 {[%clk 0:01:03.7]} 33. Rd1
{[%clk 0:00:14.3]} 33... Qf3 {[%clk 0:00:59.3]} 34. Qe8+ {[%clk 0:00:11.1]}
34... Kh7 {[%clk 0:00:57.5]} 35. Rd8 {[%clk 0:00:09]} 35... Rf8 {[%clk 0:00:52]}
36. Qd7 {[%clk 0:00:08.4]} 36... Rxd8 {[%clk 0:00:49.8]} 37. Qxd8 {[%clk
0:00:08.3]} 37... Qxh3 {[%clk 0:00:49.7]} 38. Qb6 {[%clk 0:00:06.8]} 38... Qg3+
{[%clk 0:00:44.2]} 39. fxg3 {[%clk 0:00:06.1]} 39... e4 {[%clk 0:00:32.8]} 40.
Qxa6 {[%clk 0:00:05.6]} 40... Be5 {[%clk 0:00:30.2]} 41. Qf1 {[%clk 0:00:04.3]}
41... Bxg3 {[%clk 0:00:28.6]} 42. a6 {[%clk 0:00:04.7]} 42... Bb8 {[%clk
0:00:25.8]} 43. a7 {[%clk 0:00:04.6]} 43... Bxa7 {[%clk 0:00:24.8]} 44. Bxa7
{[%clk 0:00:05.5]} 44... g5 {[%clk 0:00:24.7]} 45. Qf5+ {[%clk 0:00:05.4]} 45...
Kh6 {[%clk 0:00:22.8]} 46. Bd4 {[%clk 0:00:05.8]} 46... g4 {[%clk 0:00:21.2]}
47. Be3+ {[%clk 0:00:06]} 47... Kg7 {[%clk 0:00:20.4]} 48. Qg5+ {[%clk
0:00:05.5]} 48... Kf7 {[%clk 0:00:19.8]} 49. Qxh5+ {[%clk 0:00:06.1]} 49... Ke6
{[%clk 0:00:20.1]} 50. Qxg4+ {[%clk 0:00:06.4]} 50... Kd5 {[%clk 0:00:20.3]} 51.
Qf5+ {[%clk 0:00:06.7]} 51... Kc4 {[%clk 0:00:20.5]} 52. Qxe4+ {[%clk
0:00:07.1]} 52... Kb3 {[%clk 0:00:21]} 53. Qd5+ {[%clk 0:00:06.9]} 53... Kxb2
{[%clk 0:00:20.6]} 54. c4 {[%clk 0:00:06.7]} 1-0

[Event "*** SCC Grand Prix: Titled Tuesday Blitz"]
[Site "Chess.com"]
[Date "2020.10.13"]
[Round "9"]
[White "ChronicUnhappiness"]
[Black "GAusal"]
[Result "1-0"]
[WhiteElo "2352"]
[BlackElo "2051"]
[TimeControl "180+1"]
[EndTime "11:45:09 PDT"]
[Termination "ChronicUnhappiness won on time"]

1. d4 {[%clk 0:02:53.6]} 1... d5 {[%clk 0:02:59.4]} 2. c4 {[%clk 0:02:53.5]}
2... c6 {[%clk 0:02:59.4]} 3. Nf3 {[%clk 0:02:53]} 3... Nf6 {[%clk 0:02:58.6]}
4. e3 {[%clk 0:02:49.7]} 4... e6 {[%clk 0:02:56.7]} 5. Nc3 {[%clk 0:02:49.4]}
5... Nbd7 {[%clk 0:02:56.2]} 6. b3 {[%clk 0:02:46.3]} 6... Bb4 {[%clk 0:02:50]}
7. Bd2 {[%clk 0:02:44.9]} 7... Be7 {[%clk 0:02:40.6]} 8. Bd3 {[%clk 0:02:42.9]}
8... O-O {[%clk 0:02:39.8]} 9. O-O {[%clk 0:02:42.4]} 9... a6 {[%clk 0:02:39.3]}
10. e4 {[%clk 0:02:38.2]} 10... dxe4 {[%clk 0:02:38.3]} 11. Nxe4 {[%clk
0:02:39.1]} 11... Nxe4 {[%clk 0:02:37.8]} 12. Bxe4 {[%clk 0:02:39.4]} 12... Nf6
{[%clk 0:02:38.1]} 13. Bc2 {[%clk 0:02:39.4]} 13... b5 {[%clk 0:02:36.2]} 14. c5
{[%clk 0:02:26.4]} 14... a5 {[%clk 0:02:33.5]} 15. a3 {[%clk 0:02:22.7]} 15...
Nd5 {[%clk 0:02:31.2]} 16. Ne5 {[%clk 0:02:10.3]} 16... Bd7 {[%clk 0:02:27.2]}
17. Re1 {[%clk 0:02:06.9]} 17... f6 {[%clk 0:02:24.1]} 18. Nxd7 {[%clk
0:01:53.8]} 18... Qxd7 {[%clk 0:02:23.6]} 19. Qh5 {[%clk 0:01:53.1]} 19... g6
{[%clk 0:02:21.7]} 20. Bxg6 {[%clk 0:01:51.8]} 20... hxg6 {[%clk 0:02:21.1]} 21.
Qxg6+ {[%clk 0:01:51.4]} 21... Kh8 {[%clk 0:02:20.9]} 22. Re4 {[%clk 0:01:08.7]}
22... f5 {[%clk 0:02:11.9]} 23. Rxe6 {[%clk 0:01:08.3]} 23... Nf6 {[%clk
0:02:07.3]} 24. Rae1 {[%clk 0:00:54.3]} 24... Bd8 {[%clk 0:01:54]} 25. R1e3
{[%clk 0:00:40.7]} 25... Qg7 {[%clk 0:01:45.4]} 26. Qxf5 {[%clk 0:00:37.3]}
26... Nd5 {[%clk 0:01:29.9]} 27. Rh3+ {[%clk 0:00:32.9]} 27... Kg8 {[%clk
0:01:29.2]} 28. Qh5 {[%clk 0:00:30]} 28... Nf4 {[%clk 0:00:27.6]} 29. Bxf4
{[%clk 0:00:28.5]} 29... Rxf4 {[%clk 0:00:27.3]} 30. Rg3 {[%clk 0:00:27.9]}
30... Rxd4 {[%clk 0:00:18.7]} 31. Rxg7+ {[%clk 0:00:21.1]} 31... Kxg7 {[%clk
0:00:18.3]} 32. Qe5+ {[%clk 0:00:21.1]} 32... Kf7 {[%clk 0:00:17.7]} 33. Qxd4
{[%clk 0:00:19.7]} 33... Kxe6 {[%clk 0:00:17.4]} 34. Qd6+ {[%clk 0:00:20.1]}
34... Kf7 {[%clk 0:00:17.4]} 35. Qxc6 {[%clk 0:00:20.3]} 35... Ra7 {[%clk
0:00:15.8]} 36. Qd5+ {[%clk 0:00:19.1]} 36... Ke8 {[%clk 0:00:14.5]} 37. c6
{[%clk 0:00:19.2]} 37... Re7 {[%clk 0:00:14]} 38. g4 {[%clk 0:00:18.6]} 38...
Bc7 {[%clk 0:00:11.3]} 39. Qxb5 {[%clk 0:00:17.7]} 39... Rg7 {[%clk 0:00:08.6]}
40. h3 {[%clk 0:00:17.4]} 40... Re7 {[%clk 0:00:07.6]} 41. Kg2 {[%clk
0:00:17.6]} 41... Kf7 {[%clk 0:00:07.5]} 42. b4 {[%clk 0:00:17.9]} 42... Re6
{[%clk 0:00:07.5]} 43. Qc4 {[%clk 0:00:17.5]} 43... axb4 {[%clk 0:00:06.4]} 44.
axb4 {[%clk 0:00:17.2]} 44... Ke7 {[%clk 0:00:07.3]} 45. b5 {[%clk 0:00:17.6]}
45... Rd6 {[%clk 0:00:07.5]} 46. g5 {[%clk 0:00:17.6]} 46... Bb6 {[%clk
0:00:06.1]} 47. h4 {[%clk 0:00:17.2]} 47... Rd4 {[%clk 0:00:06]} 48. Qxd4 {[%clk
0:00:16.6]} 48... Bxd4 {[%clk 0:00:05]} 49. h5 {[%clk 0:00:15]} 49... Bb6 {[%clk
0:00:02.4]} 50. f4 {[%clk 0:00:14.6]} 50... Ke6 {[%clk 0:00:02.1]} 51. h6 {[%clk
0:00:14.7]} 1-0

[Event "*** SCC Grand Prix: Titled Tuesday Blitz"]
[Site "Chess.com"]
[Date "2020.10.13"]
[Round "9"]
[White "Oglob71"]
[Black "kidagent"]
[Result "0-1"]
[WhiteElo "2454"]
[BlackElo "2291"]
[TimeControl "180+1"]
[EndTime "11:45:10 PDT"]
[Termination "kidagent won by resignation"]

1. d4 {[%clk 0:03:00.9]} 1... d5 {[%clk 0:02:59.9]} 2. Nf3 {[%clk 0:02:58.9]}
2... Nf6 {[%clk 0:02:59]} 3. c4 {[%clk 0:02:59.3]} 3... c6 {[%clk 0:02:58.4]} 4.
Qc2 {[%clk 0:02:58.8]} 4... g6 {[%clk 0:02:57.9]} 5. Bf4 {[%clk 0:02:58]} 5...
Bf5 {[%clk 0:02:57.3]} 6. Qb3 {[%clk 0:02:57.5]} 6... Qb6 {[%clk 0:02:54.5]} 7.
c5 {[%clk 0:02:57.8]} 7... Qxb3 {[%clk 0:02:54]} 8. axb3 {[%clk 0:02:58.5]} 8...
Na6 {[%clk 0:02:52.2]} 9. e4 {[%clk 0:02:49.4]} 9... dxe4 {[%clk 0:02:50.5]} 10.
Bxa6 {[%clk 0:02:48.2]} 10... bxa6 {[%clk 0:02:50.1]} 11. Ne5 {[%clk 0:02:47.7]}
11... Nd5 {[%clk 0:02:42.3]} 12. Bd2 {[%clk 0:02:42.3]} 12... Bg7 {[%clk
0:02:34.8]} 13. Nxc6 {[%clk 0:02:39.7]} 13... O-O {[%clk 0:02:31.6]} 14. Rxa6
{[%clk 0:02:39.3]} 14... Bd7 {[%clk 0:02:21]} 15. Ne5 {[%clk 0:02:36.1]} 15...
Bb5 {[%clk 0:02:21.1]} 16. Ra5 {[%clk 0:02:35.5]} 16... a6 {[%clk 0:02:20.8]}
17. Na3 {[%clk 0:02:35.6]} 17... Rfb8 {[%clk 0:02:11]} 18. Nxb5 {[%clk
0:02:31.9]} 18... Rxb5 {[%clk 0:02:07.8]} 19. Rxb5 {[%clk 0:02:30.9]} 19... axb5
{[%clk 0:01:53.6]} 20. O-O {[%clk 0:02:31.4]} 20... Ra2 {[%clk 0:01:46.9]} 21.
Rb1 {[%clk 0:02:31]} 21... f6 {[%clk 0:01:44.1]} 22. Nc6 {[%clk 0:02:30.3]}
22... Kf7 {[%clk 0:01:44.4]} 23. Kf1 {[%clk 0:02:29]} 23... Ke6 {[%clk
0:01:42.4]} 24. Nb4 {[%clk 0:02:28.1]} 24... Nxb4 {[%clk 0:01:32.9]} 25. Bxb4
{[%clk 0:02:28.4]} 25... Kd5 {[%clk 0:01:32.9]} 26. Rc1 {[%clk 0:02:26.5]} 26...
Ra6 {[%clk 0:01:29]} 27. Bc3 {[%clk 0:02:24]} 27... f5 {[%clk 0:01:27]} 28. b4
{[%clk 0:02:24]} 28... Rc6 {[%clk 0:01:25.8]} 29. Ra1 {[%clk 0:02:22]} 29...
Bxd4 {[%clk 0:01:23.8]} 30. Ra7 {[%clk 0:02:10]} 30... Bxc3 {[%clk 0:01:21]} 31.
bxc3 {[%clk 0:02:09.8]} 31... Kc4 {[%clk 0:01:21.6]} 32. Rb7 {[%clk 0:02:07.4]}
32... Kxc3 {[%clk 0:01:13.1]} 33. Rxb5 {[%clk 0:02:06.4]} 33... Kd2 {[%clk
0:01:12.5]} 34. g3 {[%clk 0:02:05.2]} 34... e5 {[%clk 0:01:08.5]} 35. Rb6 {[%clk
0:02:02]} 35... Rc8 {[%clk 0:01:07.9]} 36. c6 {[%clk 0:02:02.3]} 36... f4 {[%clk
0:01:07.6]} 37. Kg2 {[%clk 0:01:59.6]} 37... f3+ {[%clk 0:01:05.6]} 38. Kh3
{[%clk 0:01:59.6]} 38... Ke2 {[%clk 0:01:05.8]} 39. b5 {[%clk 0:01:57.6]} 39...
Kxf2 {[%clk 0:01:06]} 40. Ra6 {[%clk 0:01:52.3]} 40... e3 {[%clk 0:01:05.9]} 41.
b6 {[%clk 0:01:47.2]} 41... Rxc6 {[%clk 0:01:04.2]} 42. b7 {[%clk 0:01:46.6]}
42... Rxa6 {[%clk 0:01:03.9]} 43. b8=Q {[%clk 0:01:46.7]} 43... Ra2 {[%clk
0:01:03.3]} 44. Qb3 {[%clk 0:01:45.2]} 44... Re2 {[%clk 0:01:02.9]} 45. Qc3
{[%clk 0:01:41.9]} 45... e4 {[%clk 0:01:02.6]} 46. Qd4 {[%clk 0:01:41.3]} 46...
Kg1 {[%clk 0:00:58.2]} 47. Qxe4 {[%clk 0:01:41.3]} 47... Rxh2+ {[%clk
0:00:55.3]} 48. Kg4 {[%clk 0:01:41.4]} 48... e2 {[%clk 0:00:53.2]} 49. Qe3+
{[%clk 0:01:35]} 49... Rf2 {[%clk 0:00:51.6]} 50. Kh3 {[%clk 0:01:30.8]} 50...
Kf1 {[%clk 0:00:50.4]} 51. Qd3 {[%clk 0:01:29.4]} 51... h5 {[%clk 0:00:47.1]}
52. g4 {[%clk 0:01:18]} 52... hxg4+ {[%clk 0:00:45.3]} 53. Kxg4 {[%clk
0:01:18.3]} 53... Kg2 {[%clk 0:00:44.2]} 54. Qd2 {[%clk 0:01:05.7]} 54... Rf1
{[%clk 0:00:41.4]} 55. Qc2 {[%clk 0:01:00.2]} 55... Kh1 {[%clk 0:00:38.3]} 56.
Kh3 {[%clk 0:00:55.5]} 56... g5 {[%clk 0:00:33.4]} 57. Qc6 {[%clk 0:00:36.1]}
57... e1=Q {[%clk 0:00:29.1]} 58. Kg4 {[%clk 0:00:32.6]} 58... Rg1+ {[%clk
0:00:26.5]} 59. Kf5 {[%clk 0:00:29.9]} 59... Qg3 {[%clk 0:00:24.7]} 60. Kg6
{[%clk 0:00:28.1]} 60... Re1 {[%clk 0:00:20.6]} 61. Qd5 {[%clk 0:00:26.3]} 61...
g4 {[%clk 0:00:20.9]} 62. Kg5 {[%clk 0:00:24.7]} 62... Re5+ {[%clk 0:00:19.8]}
0-1

[Event "*** SCC Grand Prix: Titled Tuesday Blitz"]
[Site "Chess.com"]
[Date "2020.10.13"]
[Round "9"]
[White "shnitez"]
[Black "wanyaland"]
[Result "1-0"]
[WhiteElo "2496"]
[BlackElo "2282"]
[TimeControl "180+1"]
[EndTime "11:45:15 PDT"]
[Termination "shnitez won by resignation"]

1. c4 {[%clk 0:03:00.9]} 1... e5 {[%clk 0:02:54.7]} 2. Nc3 {[%clk 0:03:00]} 2...
Nf6 {[%clk 0:02:53.7]} 3. Nf3 {[%clk 0:02:59.2]} 3... Nc6 {[%clk 0:02:53.2]} 4.
e3 {[%clk 0:02:59.5]} 4... e4 {[%clk 0:02:46.6]} 5. Ng5 {[%clk 0:02:59.1]} 5...
Qe7 {[%clk 0:02:41.4]} 6. Qc2 {[%clk 0:02:57.9]} 6... Nb4 {[%clk 0:02:38.7]} 7.
Qb1 {[%clk 0:02:56.8]} 7... d5 {[%clk 0:02:38.2]} 8. cxd5 {[%clk 0:02:33.9]}
8... Bf5 {[%clk 0:02:32.4]} 9. f3 {[%clk 0:02:11.4]} 9... Nd3+ {[%clk
0:02:13.5]} 10. Bxd3 {[%clk 0:02:07.4]} 10... exd3 {[%clk 0:02:14.4]} 11. e4
{[%clk 0:01:36.4]} 11... h6 {[%clk 0:02:13]} 12. Nh3 {[%clk 0:01:31.4]} 12...
Bxh3 {[%clk 0:02:09.5]} 13. gxh3 {[%clk 0:01:32.3]} 13... O-O-O {[%clk
0:02:09.5]} 14. Qxd3 {[%clk 0:01:28.5]} 14... c6 {[%clk 0:02:09.9]} 15. Qc4
{[%clk 0:01:25.2]} 15... Nxd5 {[%clk 0:02:06.4]} 16. Nxd5 {[%clk 0:01:15.3]}
16... Rxd5 {[%clk 0:02:07.3]} 17. O-O {[%clk 0:00:52.4]} 17... Rh5 {[%clk
0:02:02.9]} 18. d4 {[%clk 0:00:45.1]} 18... Rxh3 {[%clk 0:01:53.7]} 19. Bf4
{[%clk 0:00:43.5]} 19... Qe6 {[%clk 0:01:46.4]} 20. Qxe6+ {[%clk 0:00:41.3]}
20... fxe6 {[%clk 0:01:46]} 21. Kf2 {[%clk 0:00:27.1]} 21... Rh5 {[%clk
0:01:41.4]} 22. Be5 {[%clk 0:00:25]} 22... Rg8 {[%clk 0:01:25.4]} 23. Rg1 {[%clk
0:00:20.2]} 23... Rxe5 {[%clk 0:01:22.7]} 24. dxe5 {[%clk 0:00:19.4]} 24... Bc5+
{[%clk 0:01:22.3]} 25. Ke2 {[%clk 0:00:20]} 25... Bxg1 {[%clk 0:01:21.7]} 26.
Rxg1 {[%clk 0:00:20.9]} 26... g5 {[%clk 0:01:19.8]} 27. h4 {[%clk 0:00:20]}
27... Kd7 {[%clk 0:01:19.7]} 28. hxg5 {[%clk 0:00:19.7]} 28... hxg5 {[%clk
0:01:19]} 29. f4 {[%clk 0:00:16.6]} 29... g4 {[%clk 0:01:11.6]} 30. Rh1 {[%clk
0:00:16.9]} 30... Rg7 {[%clk 0:01:09.7]} 31. Kf2 {[%clk 0:00:16.1]} 31... c5
{[%clk 0:01:07.3]} 32. Kg3 {[%clk 0:00:16.4]} 32... b5 {[%clk 0:01:04.5]} 33.
Rh4 {[%clk 0:00:15.6]} 33... c4 {[%clk 0:01:01.5]} 34. Rxg4 {[%clk 0:00:15.9]}
34... Rh7 {[%clk 0:00:53.6]} 35. Kg2 {[%clk 0:00:15.2]} 35... b4 {[%clk
0:00:48.4]} 36. Rg8 {[%clk 0:00:12.6]} 36... a5 {[%clk 0:00:24.5]} 37. Rg3
{[%clk 0:00:09.6]} 37... Kc6 {[%clk 0:00:22.9]} 38. Rg6 {[%clk 0:00:09.3]} 38...
Kc5 {[%clk 0:00:21.4]} 39. Rxe6 {[%clk 0:00:08.9]} 39... Kd4 {[%clk 0:00:19.6]}
40. Kf3 {[%clk 0:00:08.2]} 40... Rh3+ {[%clk 0:00:18.5]} 41. Kg4 {[%clk
0:00:08.2]} 41... Rh1 {[%clk 0:00:17.8]} 42. Rc6 {[%clk 0:00:07.2]} 42... Rg1+
{[%clk 0:00:15.8]} 43. Kf5 {[%clk 0:00:07.2]} 43... c3 {[%clk 0:00:16]} 44.
bxc3+ {[%clk 0:00:08.1]} 44... bxc3 {[%clk 0:00:15.7]} 45. e6 {[%clk 0:00:09]}
45... Rg8 {[%clk 0:00:06.1]} 46. e7 {[%clk 0:00:08.8]} 46... Re8 {[%clk
0:00:04.6]} 47. Ke6 {[%clk 0:00:07.6]} 1-0

[Event "*** SCC Grand Prix: Titled Tuesday Blitz"]
[Site "Chess.com"]
[Date "2020.10.13"]
[Round "9"]
[White "aloe_normansen"]
[Black "SophieNikoladze"]
[Result "0-1"]
[WhiteElo "2343"]
[BlackElo "2259"]
[TimeControl "180+1"]
[EndTime "11:45:20 PDT"]
[Termination "SophieNikoladze won by resignation"]

1. e4 {[%clk 0:03:00.9]} 1... d6 {[%clk 0:02:59.3]} 2. d4 {[%clk 0:03:00.3]}
2... Nf6 {[%clk 0:02:59.4]} 3. Nc3 {[%clk 0:02:59.7]} 3... Nbd7 {[%clk
0:02:58.2]} 4. g3 {[%clk 0:02:57.7]} 4... e5 {[%clk 0:02:56]} 5. Nge2 {[%clk
0:02:57.4]} 5... Be7 {[%clk 0:02:48.7]} 6. Bg2 {[%clk 0:02:57]} 6... c6 {[%clk
0:02:49]} 7. a4 {[%clk 0:02:56.7]} 7... Qc7 {[%clk 0:02:48.8]} 8. O-O {[%clk
0:02:53.7]} 8... O-O {[%clk 0:02:48.7]} 9. h3 {[%clk 0:02:54]} 9... Rb8 {[%clk
0:02:45.2]} 10. g4 {[%clk 0:02:49.3]} 10... Ne8 {[%clk 0:02:41.3]} 11. Be3
{[%clk 0:02:46.7]} 11... b6 {[%clk 0:02:40.7]} 12. f4 {[%clk 0:02:44.9]} 12...
Bb7 {[%clk 0:02:35]} 13. Ng3 {[%clk 0:02:43.8]} 13... exf4 {[%clk 0:02:31]} 14.
Bxf4 {[%clk 0:02:43.5]} 14... g6 {[%clk 0:02:31.1]} 15. Bh6 {[%clk 0:02:14.6]}
15... Ng7 {[%clk 0:02:29.1]} 16. Qd2 {[%clk 0:02:07]} 16... d5 {[%clk
0:02:27.8]} 17. e5 {[%clk 0:02:06.1]} 17... c5 {[%clk 0:02:27.1]} 18. Nxd5
{[%clk 0:01:55.9]} 18... Bxd5 {[%clk 0:02:26.6]} 19. Bxd5 {[%clk 0:01:56.8]}
19... cxd4 {[%clk 0:02:27]} 20. Rae1 {[%clk 0:01:43.7]} 20... Rbc8 {[%clk
0:02:16.3]} 21. Rf2 {[%clk 0:01:36]} 21... Bh4 {[%clk 0:02:11.1]} 22. Kg2 {[%clk
0:01:35.7]} 22... Nxe5 {[%clk 0:01:59.3]} 23. Bf4 {[%clk 0:01:33.7]} 23... Nc4
{[%clk 0:01:39.5]} 24. Bxc7 {[%clk 0:01:00.1]} 24... Nxd2 {[%clk 0:01:39.3]} 25.
Bd6 {[%clk 0:01:00.4]} 25... Rfd8 {[%clk 0:01:20.6]} 26. Bxf7+ {[%clk
0:00:59.8]} 26... Kh8 {[%clk 0:01:20.4]} 27. Be5 {[%clk 0:00:50.4]} 27... Bg5
{[%clk 0:01:09]} 28. h4 {[%clk 0:00:43.4]} 28... Be3 {[%clk 0:01:06.1]} 29. Rf6
{[%clk 0:00:35.8]} 29... Rxc2 {[%clk 0:01:04.3]} 30. Kh3 {[%clk 0:00:32.8]}
30... Rc5 {[%clk 0:01:00.1]} 31. Re6 {[%clk 0:00:26.8]} 31... Nf3 {[%clk
0:00:52.2]} 32. Bxg7+ {[%clk 0:00:19.9]} 32... Kxg7 {[%clk 0:00:50.7]} 33. Rf1
{[%clk 0:00:20.8]} 33... Ne5 {[%clk 0:00:44.3]} 34. Re7 {[%clk 0:00:18.6]} 34...
Rd7 {[%clk 0:00:32]} 35. Rxd7 {[%clk 0:00:14.6]} 35... Nxd7 {[%clk 0:00:31.4]}
36. Be6 {[%clk 0:00:13.7]} 36... Ne5 {[%clk 0:00:29.9]} 37. Ne4 {[%clk
0:00:12.4]} 37... Rc6 {[%clk 0:00:28.9]} 38. Bd5 {[%clk 0:00:12.1]} 38... Rc2
{[%clk 0:00:25.9]} 39. g5 {[%clk 0:00:11.2]} 39... d3 {[%clk 0:00:24.7]} 40. Nd6
{[%clk 0:00:10.2]} 40... Rf2 {[%clk 0:00:19.5]} 41. Re1 {[%clk 0:00:08.2]} 41...
d2 {[%clk 0:00:16.5]} 42. Rxe3 {[%clk 0:00:08]} 42... d1=Q {[%clk 0:00:16]} 43.
Rxe5 {[%clk 0:00:08]} 43... Qd3+ {[%clk 0:00:13.1]} 44. Kg4 {[%clk 0:00:06.5]}
44... Qd4+ {[%clk 0:00:13.2]} 45. Ne4 {[%clk 0:00:05.5]} 45... Qxe5 {[%clk
0:00:13.1]} 46. Nxf2 {[%clk 0:00:05.3]} 46... Qxd5 {[%clk 0:00:13.4]} 47. Kf4
{[%clk 0:00:04.3]} 47... Qd4+ {[%clk 0:00:13.6]} 48. Kf3 {[%clk 0:00:04.6]}
48... Qxb2 {[%clk 0:00:13.8]} 49. Ne4 {[%clk 0:00:04.9]} 49... Qa3+ {[%clk
0:00:14]} 50. Kf4 {[%clk 0:00:04.1]} 50... Qxa4 {[%clk 0:00:14.5]} 51. Ke5
{[%clk 0:00:05]} 51... Qb5+ {[%clk 0:00:14.1]} 0-1

[Event "*** SCC Grand Prix: Titled Tuesday Blitz"]
[Site "Chess.com"]
[Date "2020.10.13"]
[Round "9"]
[White "davidkalashian"]
[Black "Rodalquilar"]
[Result "0-1"]
[WhiteElo "2586"]
[BlackElo "2767"]
[TimeControl "180+1"]
[EndTime "11:45:23 PDT"]
[Termination "Rodalquilar won on time"]

1. d4 {[%clk 0:03:00.9]} 1... d5 {[%clk 0:03:00.1]} 2. Nf3 {[%clk 0:03:00.6]}
2... Nf6 {[%clk 0:03:00]} 3. c4 {[%clk 0:03:00.8]} 3... e6 {[%clk 0:03:00.3]} 4.
Nc3 {[%clk 0:02:59.7]} 4... a6 {[%clk 0:03:00.7]} 5. cxd5 {[%clk 0:02:49.7]}
5... exd5 {[%clk 0:03:01.6]} 6. Bg5 {[%clk 0:02:48.9]} 6... Be6 {[%clk
0:03:01.8]} 7. e3 {[%clk 0:02:48.6]} 7... Nbd7 {[%clk 0:03:02.2]} 8. Rc1 {[%clk
0:02:48.5]} 8... Bd6 {[%clk 0:03:01.8]} 9. Bd3 {[%clk 0:02:48.1]} 9... c6 {[%clk
0:03:01.8]} 10. O-O {[%clk 0:02:47.7]} 10... Qc7 {[%clk 0:03:02.2]} 11. Bh4
{[%clk 0:02:46.2]} 11... h6 {[%clk 0:03:01.6]} 12. Bg3 {[%clk 0:02:45.4]} 12...
Bxg3 {[%clk 0:02:58.9]} 13. hxg3 {[%clk 0:02:46.3]} 13... O-O {[%clk 0:02:59.4]}
14. b4 {[%clk 0:02:45.6]} 14... Rfc8 {[%clk 0:02:54.1]} 15. a4 {[%clk
0:02:45.1]} 15... b6 {[%clk 0:02:54.3]} 16. Qe2 {[%clk 0:02:41]} 16... Qd6
{[%clk 0:02:52.1]} 17. Bxa6 {[%clk 0:02:32.9]} 17... Re8 {[%clk 0:02:35.3]} 18.
Rb1 {[%clk 0:02:16.4]} 18... Bg4 {[%clk 0:02:09.4]} 19. Rfc1 {[%clk 0:02:12.3]}
19... Ne4 {[%clk 0:02:06.7]} 20. Bb7 {[%clk 0:01:56.7]} 20... Rad8 {[%clk
0:00:42.4]} 21. Bxc6 {[%clk 0:01:55.1]} 21... Nxg3 {[%clk 0:00:41.2]} 22. fxg3
{[%clk 0:01:39.2]} 22... Qxc6 {[%clk 0:00:41.6]} 23. Qf2 {[%clk 0:01:25.5]}
23... Rc8 {[%clk 0:00:34.3]} 24. Ne5 {[%clk 0:01:04.8]} 24... Nxe5 {[%clk
0:00:32.4]} 25. dxe5 {[%clk 0:01:05.7]} 25... Rxe5 {[%clk 0:00:28.4]} 26. Qf4
{[%clk 0:01:03.1]} 26... Qe6 {[%clk 0:00:22.7]} 27. Nb5 {[%clk 0:00:50.8]} 27...
Rxc1+ {[%clk 0:00:18.6]} 28. Rxc1 {[%clk 0:00:51.7]} 28... Rxe3 {[%clk
0:00:17.3]} 29. Nd4 {[%clk 0:00:51.9]} 29... Qe4 {[%clk 0:00:11.8]} 30. Qxe4
{[%clk 0:00:49.8]} 30... Rxe4 {[%clk 0:00:12.7]} 31. Nc6 {[%clk 0:00:50.7]}
31... Bd7 {[%clk 0:00:10.5]} 32. a5 {[%clk 0:00:48]} 32... bxa5 {[%clk
0:00:07.4]} 33. Nb8 {[%clk 0:00:39.1]} 33... Bb5 {[%clk 0:00:06.2]} 34. bxa5
{[%clk 0:00:28.5]} 34... Re8 {[%clk 0:00:06.3]} 35. Nc6 {[%clk 0:00:18.2]} 35...
Kf8 {[%clk 0:00:06.8]} 36. Nd4 {[%clk 0:00:16.4]} 36... Bc4 {[%clk 0:00:07.3]}
37. Ra1 {[%clk 0:00:10.3]} 37... Ra8 {[%clk 0:00:07.4]} 38. Kf2 {[%clk
0:00:09.3]} 38... Ke7 {[%clk 0:00:07.8]} 39. Ke3 {[%clk 0:00:10.1]} 39... Kd6
{[%clk 0:00:08.4]} 40. Nf5+ {[%clk 0:00:09.9]} 40... Kc5 {[%clk 0:00:09]} 41.
Nxg7 {[%clk 0:00:09.5]} 41... d4+ {[%clk 0:00:09.6]} 42. Kd2 {[%clk 0:00:09.8]}
42... Rb8 {[%clk 0:00:08.5]} 43. Kc1 {[%clk 0:00:08]} 43... d3 {[%clk 0:00:04]}
44. a6 {[%clk 0:00:07]} 44... Kd4 {[%clk 0:00:04]} 45. a7 {[%clk 0:00:06.9]}
45... Ra8 {[%clk 0:00:04.5]} 46. Nf5+ {[%clk 0:00:02.9]} 46... Kc3 {[%clk
0:00:05]} 47. Ra3+ {[%clk 0:00:02.6]} 47... Bb3 {[%clk 0:00:04.8]} 48. Ne3
{[%clk 0:00:02.5]} 48... d2+ {[%clk 0:00:04.6]} 49. Kb1 {[%clk 0:00:02.7]} 49...
Kb4 {[%clk 0:00:01.6]} 0-1